[Event "FIDE WTC Prel-B 2022"]
[Site "Jerusalem"]
[Date "2022.11.21"]
[Round "3.15"]
[White "Bartel, Mateusz"]
[Black "Boruchovsky, Avital"]
[Result "1/2-1/2"]
[ECO "C84"]
[WhiteElo "2627"]
[BlackElo "2552"]
[Annotator "TA"]
[PlyCount "63"]
[EventDate "2022.11.20"]
[EventType "team-tourn"]
[EventCountry "ISR"]
[SourceTitle "playchess.com"]
[Source "ChessBase"]
[SourceQuality "1"]
[WhiteTeam "Poland"]
[BlackTeam "Israel"]
[WhiteTeamCountry "POL"]
[BlackTeamCountry "ISR"]
[TimeControl "2700+10"]

{[%evp 17,63,8,16,30,18,26,22,23,53,38,29,26,35,25,22,22,15,0,17,14,27,0,0,0,0,-29,10,0,0,0,0,0,0,0,0,0,0,0,0,0,9,14,10,0,10,0,17,0]} 1. e4 {[%emt 0:00:03]} e5 {[%emt 0:00:03]} 2. Nf3 {[%emt 0:00:04]} Nc6 {[%emt 0:00:03]} 3. Bb5 {[%emt 0:00:03]} a6 {[%emt 0:00:05]} 4. Ba4 {[%emt 0:00:02]} Nf6 {[%emt 0:00:03]} 5. d3 {[%emt 0:00:02]} b5 {[%emt 0:00:07]} 6. Bb3 {[%emt 0:00:03]} Be7 {[%emt 0:00:07]} 7. O-O {[%emt 0:00:05]} Bb7 {[%emt 0:00:03]} 8. Nc3 {[%emt 0:00:05][%cal Bb1c3,Bc3e2,Be2g3,Bg3f5,Bf5d6][%mdl 32]} O-O {[%emt 0:00:05]} 9. Bd2 {[%emt 0:00:03] 9.Bd2 was played by the boomers.} d6 {[%emt 0:04:52]} 10. Ne2 {[%emt 0:00:05] C84: Closed Ruy Lopez: Unusual White 6th moves.} d5 {[%emt 0:01:13]} 11. exd5 {[%emt 0:00:08]} Nxd5 {[%emt 0:00:03]} 12. Ng3 {[%emt 0:00:12] [#]} Nd4 $146 {[%emt 0:05:52]} ({Predecessor:} 12... Qd7 13. Re1 Rad8 14. c3 f6 15. d4 exd4 16. Nxd4 Ne5 17. Bc2 g6 18. f4 Nc4 {½-½ (55) Rutkus,R (1966)-Thew,B (2210) ICCF email 2011}) 13. Nxd4 {[%emt 0:08:33]} exd4 {[%emt 0:00:03]} 14. Nf5 {[%emt 0:00:01][%cal Od2h6]} Bf6 {[%emt 0:00:42]} 15. Qg4 {[%emt 0:00:04]} Kh8 {[%emt 0:05:20]} 16. Rfe1 {[%emt 0:08:06]} c5 {[%emt 0:02:14]} 17. Qg3 {[%emt 0:03:45]} Qd7 {[%emt 0:02:06]} 18. Nd6 {[%emt 0:00:06]} Bc6 {[%emt 0:00:15][%cal Bb7c6,Bc6d5,Bd5e6][%mdl 32]} 19. Bxd5 {[%emt 0:08:54]} Bxd5 {[%emt 0:00:08]} 20. Bf4 {[%emt 0:00:03]} Rad8 {[%emt 0:02:46]} 21. h4 {[%emt 0:01:18]} Be6 {[%emt 0:04:01]} 22. Ne4 {[%emt 0:07:10] The position is equal.} Be7 {[%emt 0:00:03]} 23. Bc7 {[%emt 0:00:03]} Rc8 {[%emt 0:01:53]} 24. Bd6 {[%emt 0:01:52]} Bxd6 {[%emt 0:00:09]} 25. Qxd6 {[%emt 0:00:02]} Qxd6 {[%emt 0:00:03]} 26. Nxd6 {[%emt 0:00:02]} Rc6 {[%emt 0:00:19]} 27. Ne4 {[%emt 0:00:02]} h6 {[%emt 0:03:29]} 28. b3 {[%emt 0:00:41]} Bd5 {[%emt 0:05:51]} 29. Ng3 {[%emt 0:01:06]} Be6 {[%emt 0:00:53]} 30. Ne4 {[%emt 0:04:03]} Bd5 {[%emt 0:00:03]} 31. Ng3 {[%emt 0:00:19]} Be6 {[%emt 0:01:04]} 32. Ne4 {[%emt 0:00:11] Weighted Error Value: White=0.06 (flawless) /Black=0.04 (flawless)} 1/2-1/2

[Event "FIDE WTC Prel-B 2022"]
[Site "Jerusalem"]
[Date "2022.11.21"]
[Round "3.16"]
[White "Kobo, Ori"]
[Black "Janik, Igor"]
[Result "1/2-1/2"]
[ECO "E49"]
[WhiteElo "2554"]
[BlackElo "2539"]
[Annotator "TA"]
[PlyCount "86"]
[EventDate "2022.11.20"]
[EventType "team-tourn"]
[EventCountry "ISR"]
[SourceTitle "playchess.com"]
[Source "ChessBase"]
[SourceQuality "1"]
[WhiteTeam "Israel"]
[BlackTeam "Poland"]
[WhiteTeamCountry "ISR"]
[BlackTeamCountry "POL"]
[TimeControl "2700+10"]

{[%evp 13,86,0,22,14,22,24,26,8,9,10,4,12,11,0,14,11,13,13,54,-18,0,12,0,0,16,0,0,13,16,0,0,-74,-79,-72,-83,-102,-89,-95,-88,-88,-88,-95,-88,-93,-90,-96,-88,-94,-95,-146,-64,-64,-69,-83,0,-8,-7,0,-2,-4,0,0,0,0,0,0,0,0,0,0,0,0,0,0,0]} 1. d4 {[%emt 0:00:06]} Nf6 {[%emt 0:00:01]} 2. c4 {[%emt 0:00:05]} e6 {[%emt 0:00:02]} 3. Nc3 {[%emt 0:00:08]} Bb4 {[%emt 0:00:01]} 4. e3 {[%emt 0:00:07]} O-O {[%emt 0:00:04]} 5. Bd3 {[%emt 0:00:05]} d5 {[%emt 0:00:03]} 6. a3 {[%emt 0:00:07]} Bxc3+ {[%emt 0:05:23]} 7. bxc3 {[%emt 0:00:03]} c6 {[%emt 0:00:05][%cal Oe6e5]} 8. Ne2 {[%emt 0:00:39] 8.Nf3 is vanishing. E49: Nimzo-Indian: Rubinstein: 5 Bd3 d5 6 a3 Bxc3+ 7 bxc3.} b6 {[%emt 0:00:08]} 9. cxd5 {[%emt 0:01:07]} cxd5 {[%emt 0:00:02]} 10. f3 {[%emt 0:00:10] White has an edge.} Ba6 {[%emt 0:00:16]} 11. Bxa6 {[%emt 0:01:39] Recently 11.e4 got a lot of attention.} Nxa6 {[%emt 0:00:01]} 12. Qd3 {[%emt 0:00:02]} Qc8 {[%emt 0:01:59]} 13. e4 {[%emt 0:00:12]} Nc7 {[%emt 0:00:33]} 14. Bg5 {[%emt 0:06:49]} Nd7 $1 {[%emt 0:00:09]} 15. O-O {[%emt 0:00:07]} Qa6 {[%emt 0:00:41]} 16. Qe3 {[%emt 0:00:08] [#]} (16. Qxa6 $14 Nxa6 17. exd5) 16... Rac8 $146 {[%emt 0:01:30]} ({Predecessor:} 16... f6 17. Bh4 Qc4 18. Rab1 Rac8 19. Bg3 dxe4 20. fxe4 e5 21. h4 Rfe8 22. Qf3 a5 {½-½ (47) Milov,V (2632)-Kortschnoj,V (2569) Switzerland 2004}) 17. e5 {[%emt 0:00:54]} Qa4 {[%emt 0:05:23]} 18. Rab1 {[%emt 0:06:55]} Qc6 {[%emt 0:03:08]} 19. Ng3 {[%emt 0:04:09]} f6 {[%emt 0:02:13]} 20. exf6 {[%emt 0:00:07]} Nxf6 {[%emt 0:00:04]} 21. Ne2 {[%emt 0:04:52]} Nb5 {[%emt 0:02:54][%cal Bc7b5,Bb5a3,Ba3c4][%mdl 32]} 22. a4 {[%emt 0:01:50]} (22. Ra1 $11 {remains equal.}) 22... Na3 $17 {[%emt 0:02:02]} 23. Rbc1 {[%emt 0:00:14]} Nc4 {[%emt 0:00:03] Pair of Knights!} 24. Qf2 {[%emt 0:04:52] [#]} Ne4 $1 {[%emt 0:02:24][%mdl 512]} 25. Qh4 {[%emt 0:00:01]} Nxg5 {[%emt 0:00:01]} 26. Qxg5 {[%emt 0:00:02]} Qxa4 {[%emt 0:00:21]} 27. Rfe1 {[%emt 0:01:26]} Qd7 {[%emt 0:01:29]} 28. Nf4 {[%emt 0:00:19]} Rf6 {[%emt 0:01:02]} 29. Qg4 {[%emt 0:01:58]} Re8 {[%emt 0:06:04]} 30. Re2 {[%emt 0:00:33]} Qf7 {[%emt 0:00:03]} 31. g3 {[%emt 0:00:25]} (31. Nd3 $142) 31... h5 {[%emt 0:03:46]} (31... Rf5 $17 32. Rce1 e5) 32. Nxh5 $15 {[%emt 0:02:29]} Rg6 {[%emt 0:00:23]} ({Don't play} 32... Rxf3 33. Nxg7 $1 {[%mdl 512]} Rxg3+ 34. Qxg3 $16 (34. hxg3 Qxg7 35. Qh4 Qe7 $18)) 33. Qf4 {[%emt 0:00:55] [#]} Rh6 {[%emt 0:00:02]} (33... Qe7 $1 $17 {Hoping for ...Rf8.} 34. g4 Rf8) 34. Qxf7+ {[%emt 0:00:22] The position is equal.} Kxf7 {[%emt 0:00:01]} 35. Nf4 {[%emt 0:00:03]} g5 {[%emt 0:00:31]} 36. Nd3 {[%emt 0:00:14]} a5 {[%emt 0:00:04]} 37. Ne5+ {[%emt 0:01:34]} Nxe5 {[%emt 0:00:06]} 38. Rxe5 $11 {[%emt 0:00:02][%mdl 4096] Endgame KRR-KRR} Rg6 {[%emt 0:01:06]} 39. Rb1 {[%emt 0:01:56]} Rc8 {[%emt 0:00:31]} 40. Rxb6 {[%emt 0:00:48]} Rxc3 {[%emt 0:00:02]} 41. Rb7+ {[%emt 0:00:27]} Kf6 {[%emt 0:00:37]} 42. Rb6 {[%emt 0:00:33][%csl LRd5,LRe6]} Kf7 {[%emt 0:00:04]} 43. Rb7+ {[%emt 0:00:03]} Kf6 {[%emt 0:00:09] Weighted Error Value: White=0.11 (very precise) /Black=0.11 (very precise)} 1/2-1/2

[Event "FIDE WTC Prel-B 2022"]
[Site "Jerusalem"]
[Date "2022.11.21"]
[Round "3.17"]
[White "Mamedyarov, Shakhriyar"]
[Black "Vidit, Santosh Gujrathi"]
[Result "0-1"]
[ECO "E20"]
[WhiteElo "2741"]
[BlackElo "2724"]
[Annotator "TA"]
[PlyCount "68"]
[EventDate "2022.11.20"]
[EventType "team-tourn"]
[EventCountry "ISR"]
[SourceTitle "playchess.com"]
[Source "ChessBase"]
[SourceQuality "1"]
[WhiteTeam "Azerbaijan"]
[BlackTeam "India"]
[WhiteTeamCountry "AZE"]
[BlackTeamCountry "IND"]
[TimeControl "2700+10"]

{[%evp 14,68,-23,-39,-6,-14,-10,-12,0,0,5,0,6,14,10,20,43,37,31,18,25,23,45,6,11,-20,13,16,24,-6,210,219,178,172,210,191,283,147,145,145,189,132,155,70,97,-599,-566,-727,-724,-1094,-1101,-1094,-1048,-1043,-976,-1654,-1551]} 1. d4 {[%emt 0:00:03]} Nf6 {[%emt 0:00:18]} 2. c4 {[%emt 0:00:14]} e6 {[%emt 0:00:03]} 3. Nc3 {[%emt 0:00:10]} Bb4 {[%emt 0:00:03]} 4. g3 {[%emt 0:00:06]} O-O {[%emt 0:00:11]} 5. Bg2 {[%emt 0:00:03]} d5 {[%emt 0:00:07]} 6. Nf3 {[%emt 0:00:07]} dxc4 {[%emt 0:00:25]} 7. O-O {[%emt 0:00:11]} Nc6 {[%emt 0:00:24]} 8. Re1 {[%emt 0:00:08]} Nd5 {[%emt 0:07:34] has lost popularity (8...Rb8). E20: Nimzo-Indian: 4 g3 and 4 f3.} 9. Bd2 {[%emt 0:00:43]} Nb6 {[%emt 0:02:20] [#]} 10. e3 $146 {[%emt 0:05:37]} ({Predecessor:} 10. Ne4 Be7 11. Bc3 f5 12. Ned2 a5 13. a3 f4 14. e4 fxe3 15. Rxe3 Bf6 16. Ne4 {0-1 (62) Wesseln,K (2315)-Vonthron,H (2320) Germany 1989}) 10... Re8 {[%emt 0:00:37] The position is equal.} 11. Ne4 {[%emt 0:02:05]} a5 {[%emt 0:01:18]} 12. a3 {[%emt 0:01:52]} Bd6 {[%emt 0:01:31]} 13. Bc3 {[%emt 0:03:07]} Qe7 {[%emt 0:03:14]} 14. Nfd2 {[%emt 0:03:57]} a4 {[%emt 0:05:01]} 15. f4 {[%emt 0:03:07][%mdl 1024] White has compensation.} Bd7 {[%emt 0:00:35]} 16. Qc2 {[%emt 0:01:07]} h6 {[%emt 0:02:32]} 17. Rad1 {[%emt 0:02:37]} Reb8 {[%emt 0:02:29]} 18. g4 {[%emt 0:00:25]} f6 {[%emt 0:02:22]} 19. h4 {[%emt 0:02:03]} f5 {[%emt 0:01:22]} 20. gxf5 {[%emt 0:04:06]} exf5 {[%emt 0:00:03]} 21. Nxd6 {[%emt 0:02:09]} Qxd6 {[%emt 0:02:23]} (21... cxd6 $11 22. d5 Na7) 22. d5 $1 $18 {[%emt 0:00:10]} Ne7 {[%emt 0:00:43][%cal Bc6e7,Be7d5,Bd5f4][%mdl 32]} 23. Be5 {[%emt 0:01:47] A strong pair of Bishops.} Qc5 {[%emt 0:00:25]} 24. Bd4 {[%emt 0:00:28]} Qb5 {[%emt 0:00:16]} (24... Qd6 $142 25. Nxc4 Nxc4) 25. Kh2 {[%emt 0:00:49]} ({White must play} 25. Bf1 $1 $18 {[%cal Rd2c4]} Kh7 26. Nxc4 Nxc4 27. Bxc4) 25... Rf8 $16 {[%emt 0:03:08][%cal Bb8f8,Bf8f7,Bf7e7][%mdl 32]} (25... Nexd5 26. Rg1 c3 27. Bxd5+ Nxd5 28. Rxg7+ Kf8 29. Nc4 $1 {[%mdl 512]} Qxc4 30. Qg2 $18) 26. Rg1 {[%emt 0:00:19]} Rf7 {[%emt 0:00:02]} 27. Bf3 {[%emt 0:01:45]} (27. Bxb6 $18 Qxb6 28. Nxc4) 27... Nexd5 {[%emt 0:00:18] [#]} 28. Bh5 $1 {[%emt 0:03:53]} ({And not} 28. Bxb6 Nxb6 29. Rg3 (29. Bxb7 $2 Re8 $19) 29... Be8 30. Bxb7 Rd8 $17) 28... Re7 {[%emt 0:00:09] [#] And now ...c5 would win.} 29. Ne4 {[%emt 0:02:27][%mdl 8192] Against c5} fxe4 $19 {[%emt 0:10:07] Black is clearly winning.} 30. Qg2 {[%emt 0:01:48][%cal Rd4g7] [#]} Nxf4 $1 {[%emt 0:00:00]} 31. Qxg7+ {[%emt 0:00:18]} (31. exf4 Qxh5) 31... Rxg7 {[%emt 0:00:00]} 32. Rxg7+ {[%emt 0:00:02]} Kf8 {[%emt 0:00:00]} 33. Rf7+ {[%emt 0:02:24]} Ke8 {[%emt 0:00:00]} 34. Rxf4+ {[%emt 0:00:06]} Qxh5 {[%emt 0:00:00] Black used his chance.  Weighted Error Value: White=0.91/Black=0.26 (precise)} 0-1

[Event "FIDE WTC Prel-B 2022"]
[Site "Jerusalem"]
[Date "2022.11.21"]
[Round "3.18"]
[White "Nihal Sarin"]
[Black "Radjabov, Teimour"]
[Result "1/2-1/2"]
[ECO "E06"]
[WhiteElo "2670"]
[BlackElo "2747"]
[Annotator "TA"]
[PlyCount "66"]
[EventDate "2022.11.20"]
[EventType "team-tourn"]
[EventCountry "ISR"]
[SourceTitle "playchess.com"]
[Source "ChessBase"]
[SourceQuality "1"]
[WhiteTeam "India"]
[BlackTeam "Azerbaijan"]
[WhiteTeamCountry "IND"]
[BlackTeamCountry "AZE"]
[TimeControl "2700+10"]

{[%evp 9,66,22,19,-5,0,-2,11,2,15,15,18,15,8,16,12,17,29,18,13,14,14,14,17,12,14,15,13,5,1,4,8,0,0,0,0,2,5,5,6,0,6,0,0,0,0,0,0,0,0,0,0,0,0,0,0,0,0,0,0]} 1. d4 {[%emt 0:00:05]} Nf6 {[%emt 0:00:01]} 2. Nf3 {[%emt 0:00:03]} d5 {[%emt 0:00:04]} 3. c4 {[%emt 0:00:03]} e6 {[%emt 0:00:04]} 4. g3 {[%emt 0:00:03]} Be7 {[%emt 0:00:03]} 5. Bg2 {[%emt 0:00:03]} O-O {[%emt 0:00:04]} 6. Qd3 {[%emt 0:00:03] E06: Closed Catalan: Early deviations.} c5 {[%emt 0:03:31]} 7. O-O {[%emt 0:00:13]} Nc6 {[%emt 0:00:37] Threatens to win with ...dxc4.} 8. cxd5 {[%emt 0:00:39] [#]} exd5 $146 {[%emt 0:01:08]} ({Predecessor:} 8... Nxd5 9. dxc5 Bxc5 10. a3 Be7 11. Rd1 Qc7 12. e4 Nb6 13. Qc2 Rd8 14. Rxd8+ Qxd8 {½-½ (64) Lysyj,I (2605)-Shuvalova,P (2476) Cheliabinsk 2021}) 9. dxc5 {[%emt 0:00:31]} Bxc5 {[%emt 0:02:15]} 10. a3 {[%emt 0:00:04]} Ne4 {[%emt 0:04:13]} 11. Nc3 {[%emt 0:02:59]} Nxc3 {[%emt 0:10:33]} 12. Qxc3 {[%emt 0:00:05]} Be7 {[%emt 0:00:02]} 13. Be3 {[%emt 0:05:47]} Bf6 {[%emt 0:04:27] The position is equal.} 14. Bd4 {[%emt 0:05:33]} Nxd4 {[%emt 0:01:32]} 15. Nxd4 {[%emt 0:00:03]} Qb6 {[%emt 0:00:48]} 16. Rfd1 {[%emt 0:00:06]} Be6 {[%emt 0:03:57]} 17. e3 {[%emt 0:02:49]} Rac8 {[%emt 0:02:30]} 18. Qb4 {[%emt 0:07:31]} Qxb4 {[%emt 0:02:45]} 19. axb4 {[%emt 0:00:01]} a6 {[%emt 0:00:00]} 20. b5 {[%emt 0:05:15]} axb5 {[%emt 0:00:19]} 21. Nxb5 {[%emt 0:00:02]} Rc5 {[%emt 0:02:15]} 22. Nd4 {[%emt 0:00:20]} Rfc8 {[%emt 0:01:05]} 23. Bf3 {[%emt 0:05:06]} Kf8 {[%emt 0:00:42]} 24. Kg2 {[%emt 0:01:02]} Rc4 {[%emt 0:01:39]} 25. Ra5 {[%emt 0:05:10]} (25. b3 {is more complex.} Rb4 26. Ra4 Rxa4 27. bxa4 Ra8 28. Nxe6+ fxe6 29. Rb1) 25... Bxd4 {[%emt 0:02:09]} 26. Rxd4 {[%emt 0:00:13]} Rxd4 {[%emt 0:00:07]} 27. exd4 {[%emt 0:00:02]} Rc4 {[%emt 0:00:26]} 28. Bxd5 {[%emt 0:00:26]} Bxd5+ {[%emt 0:00:01]} 29. Rxd5 $11 {[%emt 0:00:02] KR-KR} Rb4 {[%emt 0:00:01] Inhibits Rb5.} 30. Rd7 {[%emt 0:00:02]} Rxb2 {[%emt 0:00:11]} 31. d5 {[%emt 0:00:03]} g5 {[%emt 0:01:02]} (31... Ke8 $5 32. Rc7 $8 b6 $11) 32. d6 {[%emt 0:00:06]} Kg7 {[%emt 0:00:37]} 33. Re7 {[%emt 0:00:38]} Rd2 {[%emt 0:00:08] A balanced but interesting game.  Weighted Error Value: White=0.03 (flawless) /Black=0.02 (flawless)} 1/2-1/2

[Event "FIDE WTC Prel-B 2022"]
[Site "Jerusalem"]
[Date "2022.11.21"]
[Round "3.19"]
[White "Guseinov, Gadir"]
[Black "Narayanan.S.L"]
[Result "1/2-1/2"]
[ECO "C47"]
[WhiteElo "2661"]
[BlackElo "2673"]
[Annotator "TA"]
[PlyCount "102"]
[EventDate "2022.11.20"]
[EventType "team-tourn"]
[EventCountry "ISR"]
[SourceTitle "playchess.com"]
[Source "ChessBase"]
[SourceQuality "1"]
[WhiteTeam "Azerbaijan"]
[BlackTeam "India"]
[WhiteTeamCountry "AZE"]
[BlackTeamCountry "IND"]
[TimeControl "2700+10"]

{[%evp 16,102,6,0,12,15,16,0,0,0,0,-17,0,-7,31,32,32,18,23,7,28,7,22,11,31,28,31,31,29,6,57,11,11,13,14,8,8,15,9,14,35,35,28,29,41,22,20,0,0,0,0,0,0,-11,0,-50,-50,-148,-148,-185,-168,-133,-147,-121,-69,-85,-27,-80,0,-73,-8,-8,-3,-3,0,-13,-3,-8,-6,-8,0,-8,0,-10,0,-9,-13,-13,0]} 1. e4 {[%emt 0:00:03]} e5 {[%emt 0:00:03]} 2. Nf3 {[%emt 0:00:09]} Nc6 {[%emt 0:00:03]} 3. Nc3 {[%emt 0:00:21]} Nf6 {[%emt 0:00:06]} 4. d4 {[%emt 0:00:22]} exd4 {[%emt 0:00:04]} 5. Nxd4 {[%emt 0:00:02]} Bb4 {[%emt 0:00:24]} 6. Nxc6 {[%emt 0:00:11]} bxc6 {[%emt 0:00:03]} 7. Bd3 {[%emt 0:00:04]} O-O {[%emt 0:00:25]} 8. O-O {[%emt 0:00:04]} d5 {[%emt 0:00:08]} 9. Bd2 {[%emt 0:01:10]} a5 {[%emt 0:01:26] C47: Scotch Four Knights and Four Knights with 4 g3.} 10. Re1 {[%emt 0:00:55]} Re8 {[%emt 0:02:06] [#]} 11. exd5 $146 {[%emt 0:09:58]} ({Predecessor:} 11. a3 Bg4 12. Qc1 Bxc3 13. Bxc3 dxe4 14. Bxf6 Qxf6 15. Bxe4 Re6 16. Bd3 Rxe1+ 17. Qxe1 Qxb2 {0-1 (64) Karjakin,S (2743)-Mamedyarov,S (2767) Warsaw 2021}) 11... Rxe1+ {[%emt 0:00:20]} 12. Qxe1 {[%emt 0:01:07]} cxd5 {[%emt 0:00:04]} 13. Ne2 {[%emt 0:02:32]} Bc5 {[%emt 0:02:18] White must now prevent ...Ng4.} 14. h3 {[%emt 0:01:39] Inhibits Ng4.} Ne4 {[%emt 0:07:16]} 15. Bxe4 {[%emt 0:02:09]} dxe4 {[%emt 0:00:03]} 16. Be3 {[%emt 0:00:15]} Bb4 {[%emt 0:07:34] This bishop pair is nice.} 17. Qd1 {[%emt 0:05:07]} Qe8 {[%emt 0:01:31]} 18. a3 {[%emt 0:02:50]} Bf8 {[%emt 0:00:32]} 19. Qd5 {[%emt 0:02:55]} c6 {[%emt 0:01:10]} 20. Qd2 {[%emt 0:02:21]} a4 {[%emt 0:07:22]} 21. Rd1 {[%emt 0:00:39]} Be6 {[%emt 0:00:28]} 22. Qc3 {[%emt 0:06:47]} f6 {[%emt 0:15:24]} (22... c5 $11) 23. Bc5 {[%emt 0:00:46]} (23. Ng3 $14) 23... Qh5 $11 {[%emt 0:00:00][%csl LRc5,LRe2]} 24. Bxf8 {[%emt 0:00:55]} Qxe2 {[%emt 0:00:00]} 25. Re1 {[%emt 0:00:04]} Qc4 $132 {[%emt 0:00:00][%mdl 2048] Black puts up resistance} 26. Qxc4 {[%emt 0:00:15]} Bxc4 {[%emt 0:00:00][%mdl 4096] Endgame KRB-KRB} 27. Bb4 {[%emt 0:00:10]} ({Wrong is} 27. Rxe4 $2 Bd5 28. Rh4 Kxf8 $19) 27... f5 {[%emt 0:00:00]} 28. Rd1 {[%emt 0:00:01]} Bd5 {[%emt 0:00:00]} 29. Rd4 {[%emt 0:00:20]} Kf7 {[%emt 0:00:00]} 30. c4 {[%emt 0:00:57]} Be6 {[%emt 0:00:00]} 31. Bd6 {[%emt 0:00:42]} g5 {[%emt 0:00:00]} 32. c5 {[%emt 0:01:57]} Bd5 {[%emt 0:00:00]} 33. Kf1 {[%emt 0:00:40]} f4 {[%emt 0:00:00]} 34. g3 {[%emt 0:00:29]} f3 {[%emt 0:00:00]} 35. Ke1 {[%emt 0:00:11]} ({White should play} 35. Rb4 $11) 35... Re8 $1 $15 {[%emt 0:00:00]} 36. Rxa4 {[%emt 0:01:01] [#]} (36. Kf1 $15) 36... e3 $1 $17 {[%emt 0:00:00]} 37. Rb4 {[%emt 0:00:31]} exf2+ {[%emt 0:00:00]} 38. Kxf2 {[%emt 0:00:01]} Re2+ {[%emt 0:00:00]} 39. Kf1 {[%emt 0:00:00] [#]} Rc2 {[%emt 0:00:00]} ({Black should try} 39... h5 $1 $17 40. g4 Rc2) 40. b3 $1 $15 {[%emt 0:00:01]} Rc1+ {[%emt 0:00:01][%mdl 1024] Black has strong compensation.} 41. Kf2 {[%emt 0:00:01]} Rc2+ {[%emt 0:00:01]} 42. Kf1 $1 {[%emt 0:00:01]} Ke6 {[%emt 0:01:19]} (42... Be6 $17 43. g4 h5) 43. a4 $11 {[%emt 0:00:01] The position is equal.} Rc1+ {[%emt 0:00:02]} 44. Kf2 {[%emt 0:00:00]} Rc2+ {[%emt 0:00:01]} 45. Kf1 {[%emt 0:00:01]} Ra2 {[%emt 0:01:11]} 46. g4 {[%emt 0:01:11]} Ra1+ {[%emt 0:00:02]} 47. Kf2 {[%emt 0:00:01]} Ra2+ {[%emt 0:00:04]} 48. Kf1 {[%emt 0:00:01]} Ra1+ {[%emt 0:00:41]} 49. Kf2 {[%emt 0:00:00]} Ra2+ {[%emt 0:00:00]} 50. Kf1 {[%emt 0:00:06]} Ra3 {[%emt 0:00:08]} 51. Kf2 {[%emt 0:00:07]} Ra2+ {[%emt 0:00:21] Weighted Error Value: White=0.10 (very precise) /Black=0.14 (very precise)} 1/2-1/2

[Event "FIDE WTC Prel-B 2022"]
[Site "Jerusalem"]
[Date "2022.11.21"]
[Round "3.20"]
[White "Sasikiran, Krishnan"]
[Black "Mamedov, Rauf"]
[Result "1/2-1/2"]
[ECO "D78"]
[WhiteElo "2636"]
[BlackElo "2646"]
[Annotator "TA"]
[PlyCount "56"]
[EventDate "2022.11.20"]
[EventType "team-tourn"]
[EventCountry "ISR"]
[SourceTitle "playchess.com"]
[Source "ChessBase"]
[SourceQuality "1"]
[WhiteTeam "India"]
[BlackTeam "Azerbaijan"]
[WhiteTeamCountry "IND"]
[BlackTeamCountry "AZE"]
[TimeControl "2700+10"]

{[%evp 18,56,19,19,17,9,22,0,0,0,0,-14,0,-22,-1,-13,0,-16,-14,-10,0,-22,-14,-21,-30,-23,0,-29,0,-30,0,-25,-14,-25,0,-25,0,-22,0,-15,0]} 1. d4 {[%emt 0:00:03]} Nf6 {[%emt 0:00:06]} 2. c4 {[%emt 0:00:09]} g6 {[%emt 0:00:02]} 3. g3 {[%emt 0:00:23]} c6 {[%emt 0:01:05]} 4. Nf3 {[%emt 0:01:04]} Bg7 {[%emt 0:00:05]} 5. Bg2 {[%emt 0:00:12]} d5 {[%emt 0:00:06]} 6. O-O {[%emt 0:00:58]} O-O {[%emt 0:00:03]} 7. b3 {[%emt 0:01:04]} a5 {[%emt 0:02:55]} 8. Nc3 {[%emt 0:04:01]} Ne4 {[%emt 0:01:42]} 9. Bb2 {[%emt 0:00:35]} Bf5 {[%emt 0:00:08]} 10. Rc1 {[%emt 0:02:09]} Nxc3 {[%emt 0:01:07] D78: Fianchetto Grünfeld: 6 0-0 c6.} 11. Bxc3 {[%emt 0:00:12]} Be4 {[%emt 0:00:03]} 12. Bh3 {[%emt 0:04:27]} Bxf3 {[%emt 0:00:46]} 13. exf3 {[%emt 0:00:01]} e6 {[%emt 0:00:09]} 14. f4 {[%emt 0:01:24]} Nd7 {[%emt 0:03:05][%cal Bb8d7,Bd7f6,Bf6e8,Be8d6,Bd6f5][%mdl 32] [#]} 15. Qe2 $146 {[%emt 0:06:06]} ({Predecessor:} 15. Bg2 a4 16. Qc2 axb3 17. axb3 Qb6 18. c5 Qc7 19. Ra1 b6 20. b4 Qb7 21. Rfb1 {½-½ (51) Garcia Martinez,S-Osterman,R Portoroz/Ljubljana 1975}) 15... Nf6 {[%emt 0:00:31]} 16. Bg2 {[%emt 0:01:14]} Ne8 {[%emt 0:04:11]} 17. h4 {[%emt 0:00:42]} Nd6 {[%emt 0:00:38]} 18. Rfd1 {[%emt 0:01:37]} Re8 {[%emt 0:01:08]} 19. a4 {[%emt 0:02:28]} h5 {[%emt 0:02:02]} 20. Qd3 {[%emt 0:01:50]} Nf5 {[%emt 0:02:18]} 21. Bh3 {[%emt 0:00:35]} Nd6 {[%emt 0:00:05]} 22. Bg2 {[%emt 0:00:10]} Nf5 {[%emt 0:00:25]} 23. Bh3 {[%emt 0:00:33]} Nd6 {[%emt 0:01:43]} 24. Rb1 {[%emt 0:05:08]} Ne4 {[%emt 0:01:49]} 25. Be1 {[%emt 0:00:25]} Nd6 {[%emt 0:02:02]} 26. Bd2 {[%emt 0:02:42]} Ne4 {[%emt 0:00:21]} 27. Be1 {[%emt 0:00:21]} Nd6 {[%emt 0:00:02]} 28. Bd2 {[%emt 0:00:13]} Ne4 {[%emt 0:00:01] A rather calm draw.  Weighted Error Value: White=0.10 (very precise) /Black=0.10 (very precise)} 1/2-1/2